lending/lending_fUSD_20250303
["ID","MTS","AMOUNT","RATE_DAILY","PERIOD"]
[355214870,1741017046152,-500.0,0.00014788,2]
[355214871,1741017046162,-640.75,0.00014788,2]
[355214872,1741017046172,-500.0,0.00014788,2]
[355214873,1741017046181,-500.0,0.00014788,2]
[355214874,1741017046191,-907.83,0.00014788,2]
[355214875,1741017046201,-666.53,0.00014788,2]
[355214876,1741017046211,-500.0,0.00014788,2]
[355214877,1741017046220,-1014.55,0.00014788,2]
[355214878,1741017046230,-973.7,0.00014788,2]
[355214879,1741017046240,-508.42,0.00014788,2]
[355214880,1741017046250,-500.0,0.00014788,2]
[355214882,1741017046259,-500.0,0.00014788,2]
[355214884,1741017046269,-500.0,0.00014788,2]
[355214886,1741017046282,-500.0,0.00014788,2]
[355214888,1741017046293,-500.0,0.00014788,2]
[355214890,1741017046303,-500.0,0.00014788,2]
[355214892,1741017046312,-535.28,0.00014788,2]
[355214893,1741017046322,-150.0,0.00014788,2]
[355214896,1741017046332,-1615.614118,0.00014788,2]
[355214898,1741017046342,-500.0,0.00014788,2]
[355214900,1741017046352,-2099.756705,0.00014788,2]
[355214902,1741017046362,-614.43,0.00014788,2]
[355214904,1741017046372,-744.5,0.00014788,2]
[355214905,1741017046381,-153.287909,0.00014788,2]
[355214907,1741017046391,-571.15,0.00014788,2]
[355214909,1741017046400,-500.0,0.00014788,2]
[355214911,1741017046410,-150.369306,0.00014788,2]
[355214913,1741017046419,-500.0,0.00014788,2]
[355214915,1741017046429,-500.0,0.00014788,2]
[355214917,1741017046439,-500.0,0.00014788,2]
[355214919,1741017046449,-1590.17,0.00014788,2]
[355214921,1741017046458,-1191.75,0.00014788,2]
[355214923,1741017046468,-596.75,0.00014788,2]
[355214925,1741017046478,-500.0,0.00014788,2]
[355214927,1741017046488,-500.0,0.00014788,2]
[355214929,1741017046497,-500.0,0.00014788,2]
[355214931,1741017046507,-500.0,0.00014788,2]
[355214933,1741017046516,-500.0,0.00014788,2]
[355214935,1741017046528,-500.0,0.00014788,2]
[355214937,1741017046538,-500.0,0.00014788,2]
[355214938,1741017046549,-500.0,0.00014788,2]
[355214939,1741017046559,-500.0,0.00014788,2]
[355214940,1741017046570,-500.0,0.00014788,2]
[355214941,1741017046580,-500.0,0.00014788,2]
[355214942,1741017046589,-500.0,0.00014788,2]
[355214943,1741017046600,-506.85278826,0.00014788,2]
[355214944,1741017046609,-506.79864499,0.00014788,2]
[355214945,1741017046619,-500.0,0.00014788,2]
[355214946,1741017046629,-531.43,0.00014788,2]
[355214947,1741017046640,-581.94,0.00014788,2]
[355214948,1741017046649,-500.0,0.00014788,2]
[355214949,1741017046659,-2448.01,0.00014788,2]
[355214950,1741017046668,-500.0,0.00014788,2]
[355214951,1741017046678,-509.38265947,0.00014788,2]
[355214952,1741017046687,-500.0,0.00014788,2]
[355214953,1741017046698,-901.06,0.00014788,2]
[355214954,1741017046707,-500.0,0.00014788,2]
[355214955,1741017046717,-500.0,0.00014788,2]
[355214956,1741017046727,-1139.64,0.00014788,2]
[355214957,1741017046737,-500.0,0.00014788,2]
[355214958,1741017046747,-1035.84,0.00014788,2]
[355214959,1741017046757,-500.0,0.00014788,2]
[355214960,1741017046767,-572.68,0.00014788,2]
[355214961,1741017046778,-1110.18,0.00014788,2]
[355214962,1741017046788,-500.0,0.00014788,2]
[355214963,1741017046798,-1007.32,0.00014788,2]
[355214964,1741017046808,-819.98,0.00014788,2]
[355214965,1741017046818,-500.0,0.00014788,2]
[355214966,1741017046828,-500.0,0.00014788,2]
[355214967,1741017046838,-500.0,0.00014788,2]
[355214968,1741017046849,-972.29,0.00014788,2]
[355214969,1741017046858,-500.0,0.00014788,2]
[355214970,1741017046868,-764.51,0.00014788,2]
[355214971,1741017046878,-500.0,0.00014788,2]
[355214972,1741017046887,-794.94,0.00014788,2]
[355214973,1741017046896,-500.0,0.00014788,2]
[355214974,1741017046906,-500.0,0.00014788,2]
[355214975,1741017046915,-2714.26,0.00014788,2]
[355214976,1741017046924,-816.86,0.00014788,2]
[355214977,1741017046933,-875.23,0.00014788,2]
[355214978,1741017046942,-632.92,0.00014788,2]
[355214979,1741017046952,-500.0,0.00014788,2]
[355214980,1741017046962,-500.0,0.00014788,2]
[355214981,1741017046975,-2527.16646787,0.00014788,2]
[355214982,1741017047317,-3231.78353213,0.00014788,2]
[355214983,1741017047327,-500.0,0.00014788,2]
[355214984,1741017047337,-2061.14914632,0.00014788,2]
[355214985,1741017048156,-555.32159284,0.00014788,2]
[355214986,1741017274071,-500.0,0.00014789,7]
[355214987,1741017287139,-765.36318,0.0001465,2]
[355214988,1741017287165,-765.36318,0.0001465,2]
[355214989,1741017287191,-1301.42781,0.0001465,2]
[355214990,1741017287217,-1301.42781,0.0001465,2]
[355214991,1741017287242,-1301.42781,0.0001465,2]
[355214992,1741017287270,-171.9533349,0.00014689,2]
[355214993,1741017287297,-5000.0,0.00014689,2]
[355214994,1741017287324,-1301.42781,0.0001469,2]
[355214995,1741017287352,-242.93267845,0.00014693,2]
[355214996,1741017287379,-171.95333489,0.00014693,2]
[355214997,1741017287404,-2431.0,0.00014767,2]
[355214998,1741017287431,-150.0,0.00014786,2]
[355214999,1741017287455,-500.0,0.00014787,2]
[355215000,1741017287482,-500.0,0.00014787,2]
[355215001,1741017287507,-500.0,0.00014787,2]
[355215002,1741017287534,-500.0,0.00014787,2]
[355215003,1741017287559,-500.0,0.00014787,2]
[355215004,1741017287585,-500.0,0.00014787,2]
[355215005,1741017287864,-870.0,0.00014787,2]
[355215006,1741017287891,-1931.23,0.00014787,2]
[355215007,1741017287917,-500.0,0.00014787,2]
[355215008,1741017287942,-500.0,0.00014787,2]
[355215009,1741017287967,-500.0,0.00014787,2]
[355215010,1741017287995,-2329.45,0.00014787,2]
[355215011,1741017288022,-638.76,0.00014787,2]
[355215012,1741017288052,-2601.17,0.00014787,2]
[355215013,1741017288079,-500.0,0.00014787,2]
[355215014,1741017288104,-500.0,0.00014787,2]
[355215015,1741017288131,-606.55,0.00014787,2]
[355215016,1741017288157,-972.27,0.00014787,2]
[355215017,1741017288182,-500.0,0.00014787,2]
[355215018,1741017288208,-500.0,0.00014787,2]
[355215019,1741017288236,-2273.89,0.00014787,2]
[355215020,1741017288262,-500.0,0.00014787,2]
[355215021,1741017288287,-500.0,0.00014787,2]
[355215022,1741017288314,-3829.37,0.00014787,2]
[355215023,1741017288339,-500.0,0.00014787,2]
[355215024,1741017288364,-601.18,0.00014787,2]
[355215025,1741017288394,-500.0,0.00014787,2]
[355215026,1741017288419,-500.0,0.00014787,2]
[355215027,1741017288444,-500.0,0.00014787,2]
[355215028,1741017288468,-500.0,0.00014787,2]
[355215029,1741017288495,-6921.66,0.00014787,2]
[355215030,1741017288524,-1020.19305176,0.00014787,2]
[355215031,1741017413678,1000.0,0.00013893,2]
[355215032,1741017439246,-2457.9129,0.00014688,2]
[355215033,1741017439276,-5000.0,0.00014689,2]
[355215034,1741017439303,-1303.15,0.00014786,2]
[355215035,1741017439330,-1353.67,0.00014786,2]
[355215036,1741017439355,-150.0,0.00014786,2]
[355215037,1741017439382,-500.0,0.00014786,2]
[355215038,1741017439407,-557.1,0.00014786,2]
[355215039,1741017439432,-500.0,0.00014787,2]
[355215040,1741017439459,-500.0,0.00014787,2]
[355215041,1741017439485,-965.56,0.00014787,2]
[355215042,1741017439510,-500.0,0.00014787,2]
[355215043,1741017439536,-500.0,0.00014787,2]
[355215044,1741017439562,-619.78,0.00014787,2]
[355215045,1741017439588,-500.0,0.00014787,2]
[355215046,1741017439613,-512.97,0.00014787,2]
[355215047,1741017439637,-591.76,0.00014787,2]
[355215048,1741017439663,-500.0,0.00014787,2]
[355215049,1741017439687,-500.0,0.00014787,2]
[355215050,1741017439712,-500.0,0.00014787,2]
[355215051,1741017439738,-500.0,0.00014787,2]
[355215052,1741017439764,-500.0,0.00014787,2]
[355215053,1741017439790,-500.0,0.00014787,2]
[355215054,1741017439815,-500.0,0.00014787,2]
[355215055,1741017439840,-500.0,0.00014787,2]
[355215056,1741017439865,-740.49,0.00014787,2]
[355215057,1741017439890,-463.54737189,0.00014787,2]
[355215058,1741017439917,-500.0,0.00014787,2]
[355215059,1741017439941,-500.0,0.00014787,2]
[355215060,1741017439966,-500.0,0.00014787,2]
[355215061,1741017439991,-500.0,0.00014787,2]
[355215062,1741017440017,-500.0,0.00014787,2]
[355215063,1741017440043,-500.0,0.00014787,2]
[355215064,1741017440069,-500.0,0.00014787,2]
[355215065,1741017440097,-500.0,0.00014787,2]
[355215066,1741017440123,-588.83,0.00014787,2]
[355215067,1741017440153,-500.0,0.00014787,2]
[355215068,1741017440181,-500.0,0.00014787,2]
[355215069,1741017440207,-355.91755228,0.00014787,2]
[355215070,1741017440232,-1841.96,0.00014787,2]
[355215071,1741017440258,-500.0,0.00014787,2]
[355215072,1741017440283,-500.0,0.00014787,2]
[355215073,1741017440309,-500.0,0.00014787,2]
[355215074,1741017440334,-547.35,0.00014787,2]
[355215075,1741017440359,-538.55,0.00014787,2]
[355215076,1741017440385,-500.0,0.00014787,2]
[355215077,1741017440412,-500.0,0.00014787,2]
[355215078,1741017440438,-789.21,0.00014787,2]
[355215079,1741017440465,-1076.58,0.00014787,2]
[355215080,1741017440490,-500.0,0.00014787,2]
[355215081,1741017440516,-500.0,0.00014787,2]
[355215082,1741017440542,-500.0,0.00014787,2]
[355215083,1741017440567,-519.44740323,0.00014787,2]
[355215084,1741017440592,-645.53,0.00014787,2]
[355215085,1741017440619,-500.0,0.00014787,2]
[355215086,1741017440644,-720.14,0.00014787,2]
[355215087,1741017440671,-500.0,0.00014787,2]
[355215088,1741017440699,-500.0,0.00014787,2]
[355215089,1741017440725,-500.0,0.00014787,2]
[355215090,1741017440751,-500.0,0.00014787,2]
[355215091,1741017440777,-1296.06,0.00014787,2]
[355215092,1741017440802,-500.0,0.00014787,2]
[355215093,1741017440827,-500.0,0.00014787,2]
[355215094,1741017440853,-500.0,0.00014787,2]
[355215095,1741017440877,-500.0,0.00014787,2]
[355215096,1741017440904,-500.0,0.00014787,2]
[355215097,1741017440930,-1231.22,0.00014787,2]
[355215098,1741017440956,-1433.67,0.00014787,2]
[355215099,1741017440982,-500.0,0.00014787,2]
[355215100,1741017441008,-500.0,0.00014787,2]
[355215101,1741017441278,-235.09956185,0.00014787,2]
[355215102,1741017441304,-697.47,0.00014787,2]
[355215103,1741017441329,-500.0,0.00014787,2]
[355215104,1741017441355,-523.65,0.00014787,2]
[355215105,1741017441379,-500.0,0.00014787,2]
[355215106,1741017441408,-905.96,0.00014787,2]
[355215107,1741017441434,-500.0,0.00014787,2]
[355215108,1741017441459,-500.0,0.00014787,2]
[355215109,1741017441485,-17944.83,0.00014787,2]
[355215110,1741017441509,-500.0,0.00014787,2]
[355215111,1741017441535,-500.0,0.00014787,2]
[355215112,1741017441561,-500.0,0.00014787,2]
[355215113,1741017441587,-1289.33,0.00014787,2]
[355215114,1741017441612,-500.0,0.00014787,2]
[355215115,1741017441637,-500.0,0.00014787,2]
[355215116,1741017441664,-500.0,0.00014787,2]
[355215117,1741017441691,-6642.26,0.00014787,2]
[355215118,1741017441717,-500.0,0.00014787,2]
[355215119,1741017441742,-500.0,0.00014787,2]
[355215120,1741017441767,-500.0,0.00014787,2]
[355215121,1741017441791,-500.0,0.00014787,2]
[355215122,1741017441817,-1225.79,0.00014787,2]
[355215123,1741017441843,-500.0,0.00014787,2]
[355215124,1741017441868,-500.0,0.00014787,2]
[355215125,1741017441893,-509.29,0.00014787,2]
[355215126,1741017441920,-500.0,0.00014787,2]
[355215127,1741017441945,-500.0,0.00014787,2]
[355215128,1741017441970,-500.0,0.00014787,2]
[355215129,1741017441994,-2695.32,0.00014787,2]
[355215130,1741017442020,-500.0,0.00014787,2]
[355215131,1741017442045,-500.0,0.00014787,2]
[355215132,1741017442070,-1142.93,0.00014787,2]
[355215133,1741017442100,-500.0,0.00014787,2]
[355215134,1741017442125,-500.0,0.00014787,2]
[355215135,1741017442149,-500.0,0.00014787,2]
[355215136,1741017442178,-863.52,0.00014787,2]
[355215137,1741017442203,-500.0,0.00014787,2]
[355215138,1741017442227,-729.93,0.00014787,2]
[355215139,1741017442254,-919.1,0.00014787,2]
[355215140,1741017442279,-557.69,0.00014787,2]
[355215141,1741017442303,-500.0,0.00014787,2]
[355215142,1741017442327,-500.0,0.00014787,2]
[355215143,1741017442352,-992.68,0.00014787,2]
[355215144,1741017442376,-324.74521075,0.00014787,2]
[355215145,1741017472211,169.02,0.00014329,2]
[355215146,1741017637795,250.0,0.00013,2]
[355215147,1741017706994,250.0,0.00013779,2]
[355215148,1741017755918,1101.98,0.00013774,2]
[355215149,1741017830040,165.6,0.00013773,2]
[355215150,1741017830253,165.6,0.00014026,2]
[355215151,1741017830454,165.6,0.00014278,2]
[355215152,1741017948627,960.51,0.00011847,2]
[355215153,1741017948844,960.51,0.00014111,2]
[355215154,1741017973111,472.50748,0.0001451,2]
[355215155,1741017994329,150.0,0.00013764,7]
[355215160,1741018232159,331.33,0.00013741,2]
[355215173,1741018232436,-165.6,0.00014531,2]
[355215174,1741018232446,-550.0,0.00014558,2]
[355215175,1741018232456,-175.37385668,0.000146,2]
[355215176,1741018232469,-244.05214,0.0001464,2]
[355215177,1741018232479,-500.0,0.00014685,2]
[355215178,1741018232489,-928.21671355,0.00014685,2]
[355215179,1741018232500,-164.07222593,0.00014686,2]
[355215180,1741018232510,-304.71246194,0.00014686,2]
[355215181,1741018232520,-150.0,0.00014686,2]
[355215182,1741018232530,-304.71246191,0.00014687,2]
[355215183,1741018232539,-5376.88818832,0.00014687,2]
[355215184,1741018232551,-1826.79931655,0.00014687,2]
[355215206,1741018238415,-1062.97969513,0.00014687,2]
[355215207,1741018238425,-13929.6298,0.00014687,2]
[355215208,1741018238435,-304.71246191,0.00014688,2]
[355215209,1741018238445,-5000.0,0.00014688,2]
[355215210,1741018238457,-304.71246191,0.00014688,2]
[355215211,1741018238467,-304.71246191,0.00014689,2]
[355215212,1741018238476,-304.71246191,0.0001469,2]
[355215213,1741018238486,-304.71246191,0.00014691,2]
[355215214,1741018238497,-304.71246191,0.00014691,2]
[355215215,1741018238508,-304.71246191,0.00014692,2]
[355215216,1741018238519,-175.37385667,0.00014693,2]
[355215217,1741018238529,-304.71246191,0.00014693,2]
[355215218,1741018238539,-918.72,0.00014699,2]
[355215219,1741018238549,-1073.04,0.00014699,2]
[355215220,1741018238559,-1067.0,0.00014699,2]
[355215221,1741018238570,-500.0,0.00014699,2]
[355215222,1741018238585,-500.0,0.00014699,2]
[355215223,1741018238596,-27291.19102459,0.000147,2]
[355215224,1741018238867,-63384.11345705,0.000147,2]
[355215236,1741018243699,-633.04,0.00014699,2]
[355215237,1741018243710,-96628.92626147,0.000147,2]
[355215238,1741018243720,-11362.14100816,0.000147,3]
[355215239,1741018243730,-2031.0,0.00014737,2]
[355215240,1741018243739,-151.482,0.00014737,2]
[355215241,1741018243749,-1661.0,0.00014737,2]
[355215242,1741018243759,-640.0,0.00014737,2]
[355215243,1741018243770,-570.0,0.00014737,2]
[355215244,1741018243779,-500.0,0.00014773,2]
[355215245,1741018243790,-500.0,0.00014776,2]
[355215246,1741018243801,-150.99,0.00014776,2]
[355215247,1741018243812,-601.32,0.00014779,2]
[355215248,1741018243823,-14900.0,0.0001478,2]
[355215249,1741018243833,-299.99,0.0001478,2]
[355215250,1741018243846,-824.95,0.0001478,2]
[355215251,1741018243856,-165.6,0.00014783,2]
[355215252,1741018243866,-157.54686898,0.00014786,2]
[355215253,1741018243877,-406640.11958178,0.00014786,2]
[355215273,1741018244314,-2191.38163623,0.00014786,2]
[355215276,1741018244327,-2189.69999999,0.00014786,2]
[355215278,1741018244341,-40971.82778478,0.00014786,2]
[355215280,1741018244353,-500.0,0.00014786,2]
[355215282,1741018244366,-401.04826246,0.00014786,2]
[355215284,1741018244376,-614.05,0.00014786,2]
[355215286,1741018244386,-500.0,0.00014786,2]
[355215288,1741018244397,-833.75,0.00014786,2]
[355215290,1741018244408,-500.0,0.00014786,2]
[355215292,1741018244420,-612.15,0.00014786,2]
[355215294,1741018244429,-931.76,0.00014786,2]
[355215296,1741018244439,-363.94448631,0.00014786,2]
[355215298,1741018244450,-500.0,0.00014786,2]
[355215300,1741018244459,-500.0,0.00014786,2]
[355215302,1741018244470,-500.0,0.00014786,2]
[355215304,1741018244480,-500.0,0.00014786,2]
[355215306,1741018244489,-500.0,0.00014786,2]
[355215308,1741018244499,-1.66193462,0.00014786,2]
[355215367,1741018246293,-498.33806538,0.00014786,2]
[355215368,1741018246304,-500.0,0.00014786,2]
[355215369,1741018246314,-500.0,0.00014786,2]
[355215370,1741018246325,-709.64,0.00014786,2]
[355215371,1741018246335,-500.0,0.00014786,2]
[355215372,1741018246354,-500.0,0.00014786,2]
[355215373,1741018246367,-500.0,0.00014786,2]
[355215374,1741018246378,-500.0,0.00014786,2]
[355215375,1741018246389,-564.54532913,0.00014786,2]
[355215376,1741018246401,-1765.21,0.00014786,2]
[355215377,1741018246413,-500.0,0.00014786,2]
[355215378,1741018246424,-500.0,0.00014786,2]
[355215379,1741018246436,-500.0,0.00014786,2]
[355215380,1741018246452,-500.0,0.00014786,2]
[355215381,1741018246463,-500.0,0.00014786,2]
[355215382,1741018246475,-500.0,0.00014786,2]
[355215383,1741018246488,-500.0,0.00014786,2]
[355215384,1741018246498,-500.0,0.00014786,2]
[355215385,1741018246510,-500.0,0.00014786,2]
[355215386,1741018246520,-460.73421127,0.00014786,2]
[355215387,1741018246530,-500.0,0.00014786,2]
[355215388,1741018246542,-500.0,0.00014786,2]
[355215389,1741018246554,-500.0,0.00014786,2]
[355215390,1741018246567,-500.0,0.00014786,2]
[355215391,1741018246579,-500.0,0.00014786,2]
[355215392,1741018246592,-500.0,0.00014786,2]
[355215393,1741018246602,-2346.01,0.00014786,2]
[355215394,1741018246612,-500.0,0.00014786,2]
[355215395,1741018246622,-500.0,0.00014786,2]
[355215396,1741018246632,-827.54,0.00014786,2]
[355215397,1741018246642,-2360.44,0.00014786,2]
[355215398,1741018246652,-500.0,0.00014786,2]
[355215399,1741018246662,-951.32,0.00014786,2]
[355215400,1741018246672,-500.0,0.00014786,2]
[355215401,1741018246682,-587.10310903,0.00014786,2]
[355215402,1741018246694,-545.60246269,0.00014786,2]
[355215403,1741018246704,-548.81,0.00014786,2]
[355215404,1741018246715,-1719.6,0.00014786,2]
[355215405,1741018246727,-500.0,0.00014786,2]
[355215406,1741018246737,-500.0,0.00014786,2]
[355215407,1741018246747,-1063.93,0.00014786,2]
[355215408,1741018246757,-500.0,0.00014786,2]
[355215409,1741018246767,-1606.7,0.00014786,2]
[355215410,1741018246778,-8214.72,0.00014786,2]
[355215411,1741018246788,-500.0,0.00014786,2]
[355215412,1741018246798,-500.0,0.00014786,2]
[355215413,1741018246808,-500.0,0.00014786,2]
[355215414,1741018246818,-751.2,0.00014786,2]
[355215415,1741018246827,-500.0,0.00014786,2]
[355215416,1741018246841,-500.0,0.00014786,2]
[355215418,1741018246852,-500.0,0.00014786,2]
[355215420,1741018246863,-505.51,0.00014786,2]
[355215422,1741018246873,-760.6,0.00014786,2]
[355215424,1741018246884,-17197.12,0.00014786,2]
[355215426,1741018246894,-761.82,0.00014786,2]
[355215428,1741018246906,-500.0,0.00014786,2]
[355215430,1741018246919,-500.0,0.00014786,2]
[355215432,1741018246929,-500.0,0.00014786,2]
[355215433,1741018246941,-500.0,0.00014786,2]
[355215435,1741018246952,-1475.88,0.00014786,2]
[355215437,1741018246962,-1373.93,0.00014786,2]
[355215439,1741018246972,-500.0,0.00014786,2]
[355215441,1741018246981,-1430.15,0.00014786,2]
[355215443,1741018246991,-500.0,0.00014786,2]
[355215445,1741018247000,-1095.31,0.00014786,2]
[355215447,1741018247010,-2012.266843,0.00014786,2]
[355215449,1741018247020,-500.0,0.00014786,2]
[355215451,1741018247031,-150.369306,0.00014786,2]
[355215453,1741018247042,-699.52,0.00014786,2]
[355215455,1741018247052,-514.01,0.00014786,2]
[355215457,1741018247062,-500.0,0.00014786,2]
[355215459,1741018247073,-1548.296863,0.00014786,2]
[355215461,1741018247083,-1373.77,0.00014786,2]
[355215463,1741018247096,-500.0,0.00014786,2]
[355215465,1741018247106,-1041.44,0.00014786,2]
[355215467,1741018247116,-500.0,0.00014786,2]
[355215469,1741018247125,-500.0,0.00014786,2]
[355215471,1741018247135,-1060.97,0.00014786,2]
[355215473,1741018247144,-1322.57,0.00014786,2]
[355215475,1741018247154,-838.76,0.00014786,2]
[355215477,1741018247164,-500.0,0.00014786,2]
[355215479,1741018247174,-1201.51,0.00014786,2]
[355215481,1741018247184,-1012.14,0.00014786,2]
[355215483,1741018247195,-500.0,0.00014786,2]
[355215485,1741018247205,-1248.85,0.00014786,2]
[355215487,1741018247215,-500.0,0.00014786,2]
[355215488,1741018247225,-509.97737723,0.00014786,2]
[355215489,1741018247235,-500.0,0.00014786,2]
[355215490,1741018247245,-891.41,0.00014786,2]
[355215491,1741018247255,-770.44,0.00014786,2]
[355215492,1741018247264,-1613.03,0.00014786,2]
[355215493,1741018247274,-2564.82,0.00014786,2]
[355215494,1741018247283,-2492.78,0.00014786,2]
[355215495,1741018247292,-1297.27,0.00014786,2]
[355215496,1741018247301,-692.42,0.00014786,2]
[355215497,1741018247310,-500.0,0.00014786,2]
[355215498,1741018247319,-7348.84,0.00014786,2]
[355215499,1741018247329,-581.28,0.00014786,2]
[355215500,1741018247343,-2232.39,0.00014786,2]
[355215501,1741018247352,-500.0,0.00014786,2]
[355215502,1741018247362,-1098.08,0.00014786,2]
[355215503,1741018247376,-1927.81,0.00014786,2]
[355215504,1741018247386,-593.94,0.00014786,2]
[355215506,1741018247396,-3669.81,0.00014786,2]
[355215508,1741018247407,-500.0,0.00014786,2]
[355215509,1741018247419,-2179.14,0.00014786,2]
[355215511,1741018247429,-1068.08,0.00014786,2]
[355215513,1741018247439,-500.0,0.00014786,2]
[355215515,1741018247450,-848.96,0.00014786,2]
[355215518,1741018247459,-1614.39,0.00014786,2]
[355215520,1741018247469,-6735.53,0.00014786,2]
[355215521,1741018247479,-500.0,0.00014786,2]
[355215523,1741018247491,-6633.26,0.00014786,2]
[355215525,1741018247500,-500.0,0.00014786,2]
[355215527,1741018247511,-464.55641617,0.00014786,2]
[355215530,1741018247523,-3133.39,0.00014786,2]
[355215532,1741018247533,-500.0,0.00014786,2]
[355215533,1741018247543,-763.29,0.00014786,2]
[355215534,1741018247554,-864.04,0.00014786,2]
[355215535,1741018247563,-2522.99,0.00014786,2]
[355215536,1741018247573,-500.0,0.00014786,2]
[355215537,1741018247584,-1566.98,0.00014786,2]
[355215538,1741018247598,-2519.5,0.00014786,2]
[355215539,1741018247609,-629.78826756,0.00014786,2]
[355215540,1741018247619,-500.0,0.00014786,2]
[355215541,1741018247628,-500.0,0.00014786,2]
[355215542,1741018247638,-1179.92,0.00014786,2]
[355215543,1741018247648,-1659.37,0.00014786,2]
[355215544,1741018247657,-1242.06,0.00014786,2]
[355215545,1741018247667,-4622.39,0.00014786,2]
[355215546,1741018247677,-868.21,0.00014786,2]
[355215547,1741018247687,-500.0,0.00014786,2]
[355215548,1741018247697,-500.0,0.00014786,2]
[355215549,1741018247707,-1762.15,0.00014786,2]
[355215550,1741018247716,-879.75,0.00014786,2]
[355215551,1741018247729,-1845.4,0.00014786,2]
[355215552,1741018247738,-500.0,0.00014786,2]
[355215553,1741018247749,-6365.5,0.00014786,2]
[355215554,1741018247758,-680.99,0.00014786,2]
[355215555,1741018247768,-734.84,0.00014786,2]
[355215556,1741018247779,-716.99,0.00014786,2]
[355215557,1741018247789,-2162.48,0.00014786,2]
[355215558,1741018247800,-1212.73,0.00014786,2]
[355215559,1741018247810,-1174.72,0.00014786,2]
[355215560,1741018247820,-561.4,0.00014786,2]
[355215561,1741018247829,-1235.61,0.00014786,2]
[355215562,1741018247843,-500.0,0.00014786,2]
[355215563,1741018247852,-1497.44,0.00014786,2]
[355215564,1741018247862,-500.0,0.00014786,2]
[355215565,1741018247871,-5621.86,0.00014786,2]
[355215566,1741018247881,-316.6005997,0.00014786,2]
[355215567,1741018247890,-500.0,0.00014786,2]
[355215568,1741018247900,-500.0,0.00014786,2]
[355215569,1741018247910,-500.0,0.00014786,2]
[355215570,1741018247920,-1472.88,0.00014786,2]
[355215571,1741018247931,-1556.13,0.00014786,2]
[355215572,1741018247941,-500.0,0.00014786,2]
[355215573,1741018247951,-880.8,0.00014786,2]
[355215574,1741018247961,-1000.28,0.00014786,2]
[355215575,1741018247971,-1127.35,0.00014786,2]
[355215576,1741018247980,-12052.8,0.00014786,2]
[355215577,1741018247992,-1199.36,0.00014786,2]
[355215578,1741018248002,-500.0,0.00014786,2]
[355215579,1741018248013,-1287.9,0.00014786,2]
[355215580,1741018248023,-7354.53,0.00014786,2]
[355215581,1741018248033,-500.0,0.00014786,2]
[355215582,1741018248045,-412.20478925,0.00014787,2]
[355215583,1741018248055,-500.0,0.00014787,2]
[355215584,1741018248065,-532.79303157,0.00014787,2]
[355215585,1741018248080,-740.15,0.00014787,2]
[355215586,1741018248094,-500.0,0.00014787,2]
[355215587,1741018248105,-500.0,0.00014787,2]
[355215588,1741018248115,-500.0,0.00014787,2]
[355215589,1741018248126,-500.0,0.00014787,2]